bitfinex-derivatives/quotes_BTCF0:USTF0_20241223
["timestamp","ask_amount","ask_price","bid_price","bid_amount"]
[1734979994479,0.13700412,92841.0,92827.0,0.3608]
[1734979994882,0.27901279,92840.0,92827.0,0.3608]
[1734979995074,0.38672324,92840.0,92827.0,0.3608]
[1734979995270,0.1792,92831.0,92809.0,0.3608]
[1734979995470,0.1792,92831.0,92819.0,0.3608]
[1734979995669,0.27412553,92830.0,92819.0,0.3608]
[1734979995876,0.38184294,92830.0,92819.0,0.3608]
[1734979996080,0.38184294,92830.0,92827.0,0.3608]
[1734979996280,0.38184294,92830.0,92828.0,0.131]
[1734979997783,0.41159785,92830.0,92828.0,0.131]
[1734979998577,0.22095204,92830.0,92828.0,0.131]
[1734979998773,0.02948106,92840.0,92828.0,0.131]
[1734979998973,0.1792,92859.0,92839.0,0.3608]
[1734979999282,0.27558123,92858.0,92853.0,0.3608]
[1734979999581,0.10770175,92858.0,92853.0,0.3608]
[1734979999782,0.28208129,92857.0,92853.0,0.3608]
[1734979999983,0.28208129,92857.0,92849.0,0.3608]
[1734980000369,0.10770175,92856.0,92849.0,0.3608]
[1734980000774,0.28024748,92855.0,92849.0,0.3608]
[1734980001383,0.10769711,92854.0,92849.0,0.3608]
[1734980001578,0.10769711,92854.0,92849.0,0.3628]
[1734980001787,0.27393962,92853.0,92849.0,0.3628]
[1734980002178,0.31580277,92852.0,92849.0,0.3628]
[1734980002377,0.42350104,92852.0,92849.0,0.3638]
[1734980002687,0.28102409,92851.0,92849.0,0.3638]
[1734980003079,0.28102409,92851.0,92849.0,0.3628]
[1734980003280,0.10769943,92850.0,92849.0,0.3638]
[1734980003579,0.38322193,92850.0,92849.0,0.3638]
[1734980003974,0.34738304,92858.0,92849.0,0.3638]
[1734980004180,0.34738304,92858.0,92857.0,0.3608]
[1734980004381,0.00056001,92890.0,92858.0,0.285]
[1734980004583,0.77316001,92902.0,92888.0,0.3608]
[1734980004777,0.39287975,92889.0,92888.0,0.3608]
[1734980004979,0.28518322,92901.0,92888.0,0.3608]
[1734980005181,0.15665528,92902.0,92888.0,0.3608]
[1734980005182,0.15609527,92902.0,92900.0,0.3608]
[1734980005375,0.15609527,92902.0,92900.0,0.30010092]
[1734980005587,0.2799473,92901.0,92900.0,0.23940192]
[1734980005791,0.38759629,92901.0,92900.0,0.23940192]
[1734980006182,0.39159629,92901.0,92900.0,0.23940192]
[1734980006885,0.27013918,92901.0,92900.0,0.23940192]
[1734980007086,0.28413918,92901.0,92900.0,0.24040192]
[1734980007690,0.28413918,92901.0,92900.0,0.16540192]
[1734980007884,0.28413918,92901.0,92900.0,0.001]
[1734980008078,1.05947291,92901.0,92862.0,0.3608]
[1734980008286,0.3608,92877.0,92854.0,0.3608]
[1734980008489,0.3608,92868.0,92854.0,0.3608]
[1734980008883,0.38964391,92867.0,92854.0,0.3608]
[1734980009897,0.3608,92860.0,92843.0,0.3608]
[1734980010286,0.28244474,92859.0,92843.0,0.3608]
[1734980010485,0.39014359,92859.0,92843.0,0.3608]
[1734980011097,0.39014359,92859.0,92851.0,0.3608]
[1734980012694,0.2296566,92859.0,92851.0,0.3608]
[1734980016589,0.2296566,92859.0,92852.0,0.1408]
[1734980017295,0.2296566,92859.0,92851.0,0.3608]
[1734980018281,0.2296566,92859.0,92844.0,0.285]
[1734980018489,0.2296566,92859.0,92851.0,0.001]
[1734980018896,0.16057189,92858.0,92851.0,0.001]
[1734980019282,0.1121772,92857.0,92851.0,0.001]
[1734980019487,0.58067257,92857.0,92851.0,0.001]
[1734980019687,0.1610902,92856.0,92832.0,0.3608]
[1734980020089,0.3608,92844.0,92821.0,0.3608]
[1734980020396,0.3608,92831.0,92821.0,0.3608]
[1734980020900,0.38867564,92830.0,92821.0,0.3608]
[1734980021192,0.72388001,92844.0,92821.0,0.3608]
[1734980021402,0.28095533,92839.0,92821.0,0.3608]
[1734980021594,1.02484001,92844.0,92821.0,0.3608]
[1734980021891,0.38808801,92838.0,92821.0,0.3608]
[1734980022097,0.001,92830.0,92821.0,0.3628]
[1734980022882,0.1861905,92829.0,92821.0,0.3628]
[1734980023092,0.29391951,92829.0,92821.0,0.3628]
[1734980023595,0.29391951,92829.0,92821.0,0.3608]
[1734980023796,0.29391951,92829.0,92821.0,0.3618]
[1734980024004,0.29491951,92829.0,92821.0,0.3618]
[1734980024495,0.29591951,92829.0,92821.0,0.3618]
[1734980024895,0.75252165,92844.0,92827.0,0.3608]
[1734980024896,0.33414116,92844.0,92827.0,0.3608]
[1734980025095,0.33358115,92844.0,92838.0,0.3608]
[1734980025296,0.28136739,92842.0,92838.0,0.3608]
[1734980025490,0.38969699,92843.0,92838.0,0.3608]
[1734980025699,0.33358115,92844.0,92838.0,0.3608]
[1734980025892,0.28560926,92841.0,92838.0,0.3608]
[1734980026091,0.39332029,92842.0,92838.0,0.3608]
[1734980026290,0.28666052,92840.0,92838.0,0.3608]
[1734980026587,0.39201117,92841.0,92838.0,0.3608]
[1734980026791,0.28430014,92842.0,92838.0,0.3608]
[1734980026988,0.28430014,92839.0,92838.0,0.3608]
[1734980027194,0.39201233,92840.0,92838.0,0.3608]
[1734980027500,0.39194675,92839.0,92838.0,0.3608]
[1734980027991,0.27531955,92840.0,92838.0,0.3608]
[1734980028201,0.001,92842.0,92838.0,0.3608]
[1734980028202,0.3830329,92839.0,92838.0,0.3638]
[1734980028390,0.11328897,92839.0,92838.0,0.3638]
[1734980028593,0.1494,92861.0,92838.0,0.3638]
[1734980028790,0.36312001,92874.0,92860.0,0.3608]
[1734980028791,0.0251378,92874.0,92860.0,0.3608]
[1734980028995,0.00056001,92874.0,92873.0,0.3608]
[1734980029297,0.28262241,92874.0,92873.0,0.3608]
[1734980029599,0.39033634,92874.0,92873.0,0.3608]
[1734980030999,0.23763843,92874.0,92873.0,0.3608]
[1734980031294,0.24163843,92874.0,92873.0,0.3608]
[1734980031496,0.70374081,92874.0,92844.0,0.02574027]
[1734980031813,0.70374081,92874.0,92838.0,0.36241582]
[1734980031814,0.3608,92858.0,92838.0,0.25067582]
[1734980032098,0.16210238,92857.0,92846.0,0.3608]
[1734980032293,0.28284178,92857.0,92846.0,0.3608]
[1734980032494,0.39051512,92857.0,92846.0,0.3608]
[1734980033602,0.39051512,92857.0,92846.0,0.3638]
[1734980033995,0.39051512,92857.0,92846.0,0.3658]
[1734980034995,0.26977572,92857.0,92846.0,0.3658]
[1734980035502,0.11208531,92856.0,92846.0,0.3658]
[1734980036101,0.10769885,92855.0,92846.0,0.3658]
[1734980036307,0.3608,92848.0,92846.0,0.005]
[1734980036494,0.1643,92847.0,92827.0,0.3608]
[1734980036692,0.439971,92847.0,92846.0,0.002]
[1734980037097,0.54767101,92847.0,92846.0,0.002]
[1734980037298,0.54767101,92847.0,92846.0,0.004]
[1734980039502,0.54767101,92847.0,92846.0,0.003]
[1734980040010,0.57302893,92847.0,92846.0,0.003]
[1734980040308,0.57302893,92847.0,92817.0,0.3608]
[1734980040309,0.87302893,92847.0,92817.0,0.3608]
[1734980040509,0.3608,92828.0,92817.0,0.3608]
[1734980040904,0.27828084,92827.0,92817.0,0.3608]
[1734980041103,0.38598549,92827.0,92817.0,0.3608]
[1734980042103,0.38698549,92827.0,92817.0,0.3608]
[1734980042407,0.38698549,92827.0,92807.0,0.3608]
[1734980043203,0.38798549,92827.0,92807.0,0.3608]
[1734980044602,0.38698549,92827.0,92807.0,0.3608]
[1734980044799,0.38798549,92827.0,92807.0,0.3608]
[1734980045003,0.41294016,92827.0,92807.0,0.3608]
[1734980046715,0.41294016,92827.0,92815.0,0.3608]
[1734980048519,0.38798549,92827.0,92815.0,0.3608]
[1734980050015,0.38798549,92827.0,92798.0,0.3608]
[1734980050016,0.3608,92819.0,92798.0,0.3608]
[1734980050315,0.09145942,92810.0,92798.0,0.3608]
[1734980050519,0.4469688,92818.0,92798.0,0.3608]
[1734980050717,0.28264746,92809.0,92798.0,0.3608]
[1734980050921,0.16079261,92809.0,92798.0,0.3608]
[1734980051117,0.16079261,92809.0,92807.0,0.3608]
[1734980051314,0.1623,92818.0,92807.0,0.3608]
[1734980051315,0.22960244,92808.0,92807.0,0.3608]
[1734980051622,0.11644858,92817.0,92807.0,0.3608]
[1734980051923,0.11644858,92825.0,92816.0,0.3608]
[1734980052220,0.001,92827.0,92824.0,0.3608]
[1734980052423,0.36312001,92860.0,92824.0,0.3608]
[1734980052424,0.1623,92840.0,92824.0,0.3608]
[1734980052716,0.18757823,92840.0,92832.0,0.3608]
[1734980052917,0.27610086,92839.0,92832.0,0.3608]
[1734980053217,0.10772901,92839.0,92832.0,0.3608]
[1734980053424,0.09145942,92842.0,92832.0,0.3608]
[1734980053617,0.2246741,92838.0,92832.0,0.3608]
[1734980053818,0.10771741,92838.0,92832.0,0.3608]
[1734980054015,0.27906736,92847.0,92832.0,0.3608]
[1734980054333,0.16211067,92847.0,92832.0,0.3608]
[1734980054528,0.001,92840.0,92832.0,0.3608]
[1734980054922,0.2745981,92839.0,92832.0,0.3608]
[1734980055228,0.38231087,92839.0,92832.0,0.3608]
[1734980056131,0.36264,92877.0,92837.0,0.053929]
[1734980056325,0.1548,92876.0,92862.0,0.3608]
[1734980056530,0.28320202,92863.0,92862.0,0.3608]
[1734980056739,0.10769247,92875.0,92862.0,0.3608]
[1734980056926,0.16182899,92863.0,92844.0,0.3608]
[1734980057230,0.3608,92855.0,92844.0,0.3608]
[1734980057528,0.27867173,92854.0,92844.0,0.3608]
[1734980057728,0.54695215,92854.0,92844.0,0.3608]
[1734980058626,0.54695215,92854.0,92844.0,0.3628]
[1734980059023,0.54795215,92854.0,92844.0,0.3628]
[1734980059230,0.39315215,92854.0,92852.0,0.3608]
[1734980061228,0.39215215,92854.0,92852.0,0.3608]
[1734980063637,0.2315729,92854.0,92852.0,0.3608]
[1734980064635,0.2325729,92854.0,92852.0,0.3608]
[1734980068131,0.1325729,92854.0,92852.0,0.3608]
[1734980070832,0.36312001,92894.0,92853.0,0.3637]
[1734980071036,0.1861,92893.0,92885.0,0.3608]
[1734980071232,0.46902065,92893.0,92885.0,0.3608]
[1734980071439,0.10769711,92892.0,92885.0,0.3608]
[1734980071824,0.22173577,92892.0,92885.0,0.3608]
[1734980072039,0.02287756,92904.0,92885.0,0.3608]
[1734980072230,0.1809,92916.0,92901.0,0.3608]
[1734980072431,0.38325634,92903.0,92901.0,0.3608]
[1734980072630,0.10765537,92903.0,92901.0,0.3608]
[1734980072936,0.10763277,92914.0,92901.0,0.2858]
[1734980073138,0.11224498,92902.0,92901.0,0.2858]
[1734980073332,0.45373386,92914.0,92901.0,0.2858]
[1734980073536,0.10763277,92902.0,92901.0,0.2858]
[1734980073840,0.12015543,92902.0,92901.0,0.2858]
[1734980074135,0.10763393,92902.0,92901.0,0.6466]
[1734980074339,0.10763393,92902.0,92901.0,0.6476]
[1734980074641,0.006,92903.0,92901.0,0.6476]
[1734980074831,0.10764088,92902.0,92901.0,0.6476]
[1734980075140,0.10964088,92902.0,92901.0,0.6476]
[1734980075727,0.10864088,92902.0,92901.0,0.6466]
[1734980078236,0.11064088,92902.0,92901.0,0.6466]
[1734980078438,0.003,92902.0,92901.0,0.9466]
[1734980078641,0.1873,92938.0,92906.0,0.05389]
[1734980078842,0.1873,92938.0,92928.0,0.09120523]
[1734980079040,0.46452114,92938.0,92928.0,0.09120523]
[1734980079634,0.10764088,92937.0,92928.0,0.09120523]
[1734980080038,0.27815398,92936.0,92928.0,0.09120523]
[1734980080236,0.27815398,92936.0,92926.0,0.49754633]
[1734980080443,0.3608,92927.0,92901.0,0.2858]
[1734980080638,0.001,92902.0,92901.0,0.2858]
[1734980080839,0.001,92902.0,92900.0,0.00861]
[1734980081035,0.28657091,92902.0,92900.0,0.00861]
[1734980081232,0.28557091,92902.0,92900.0,0.00861]
[1734980081437,0.30804897,92902.0,92900.0,0.00861]
[1734980081645,0.30804897,92902.0,92886.0,0.3608]
[1734980082147,0.3608,92896.0,92886.0,0.3608]
[1734980082542,0.22993379,92895.0,92886.0,0.3608]
[1734980082749,0.3608,92888.0,92868.0,0.36152]
[1734980082935,0.3608,92875.0,92868.0,0.36152]
[1734980083134,0.3608,92875.0,92866.0,0.00861]
[1734980083338,0.12037432,92874.0,92866.0,0.00861]
[1734980083735,0.12037432,92874.0,92851.0,0.22722]
[1734980083935,0.12037432,92874.0,92851.0,0.21861]
[1734980084748,0.12037432,92874.0,92858.0,0.3608]
[1734980087051,0.13674633,92870.0,92858.0,0.3608]
[1734980088854,0.13674633,92870.0,92853.0,0.3608]
[1734980089653,0.3608,92865.0,92853.0,0.3608]
[1734980089852,0.1778,92864.0,92853.0,0.3608]
[1734980090353,0.1778,92864.0,92858.0,0.002]
[1734980090743,0.1608623,92863.0,92841.0,0.00064]
[1734980090947,0.3608,92842.0,92832.0,0.00161586]
[1734980091347,0.11264243,92841.0,92832.0,0.00161586]
[1734980091547,0.29044243,92841.0,92832.0,0.00161586]
[1734980091945,0.10771625,92840.0,92832.0,0.00161586]
[1734980092147,0.3608,92834.0,92823.0,0.51301]
[1734980092451,0.3608,92824.0,92817.0,0.3608]
[1734980092848,0.22514807,92823.0,92808.0,0.3608]
[1734980093351,0.13674633,92820.0,92808.0,0.3608]
[1734980093751,0.3608,92816.0,92808.0,0.3608]
[1734980094057,0.12389585,92815.0,92808.0,0.3658]
[1734980094648,0.001,92820.0,92809.0,0.414752]
[1734980094851,0.001,92820.0,92819.0,0.3608]
[1734980095550,0.3608,92842.0,92819.0,0.3608]
[1734980095754,0.3608,92842.0,92828.0,0.3608]
[1734980095949,0.12424069,92840.0,92828.0,0.3608]
[1734980096149,0.23197667,92840.0,92828.0,0.3608]
[1734980097357,0.23197667,92840.0,92828.0,0.3638]
[1734980098260,0.23297667,92840.0,92828.0,0.3658]
[1734980099550,0.3608,92833.0,92801.0,0.3608]
[1734980099748,0.3608,92814.0,92801.0,0.3608]
[1734980100065,0.3608,92814.0,92802.0,0.3608]
[1734980100066,0.27613801,92813.0,92802.0,0.3608]
[1734980100263,0.58025716,92813.0,92802.0,0.3608]
[1734980100857,0.58025716,92813.0,92807.0,0.004]
[1734980101157,1.05945716,92813.0,92807.0,0.004]
[1734980101461,0.1792,92807.0,92802.0,0.004]
[1734980101760,0.11354056,92806.0,92802.0,0.004]
[1734980101948,0.27483375,92806.0,92802.0,0.004]
[1734980102151,0.68258076,92806.0,92802.0,0.004]
[1734980102355,0.38258076,92806.0,92802.0,0.004]
[1734980102860,0.68358076,92806.0,92800.0,0.1]
[1734980103360,0.38358076,92806.0,92800.0,0.1]
[1734980103558,0.38358076,92806.0,92801.0,0.3608]
[1734980103753,0.38458076,92806.0,92801.0,0.3608]
[1734980104562,0.38358076,92806.0,92801.0,0.3608]
[1734980104765,0.38458076,92806.0,92801.0,0.3608]
[1734980105656,0.38358076,92806.0,92805.0,0.3608]
[1734980105966,0.00056001,92822.0,92805.0,0.3608]
[1734980106262,0.13674633,92830.0,92821.0,0.3608]
[1734980106559,0.2743988,92825.0,92821.0,0.3608]
[1734980106765,0.38215335,92825.0,92821.0,0.3608]
[1734980107754,0.38315335,92825.0,92821.0,0.3608]
[1734980108163,0.38415335,92825.0,92821.0,0.3618]
[1734980111769,0.08105335,92825.0,92822.0,0.569]
[1734980111953,0.12389788,92824.0,92822.0,0.569]
[1734980112259,0.002,92825.0,92822.0,0.569]
[1734980112465,0.16202148,92823.0,92821.0,0.3618]
[1734980112652,0.16202148,92823.0,92784.0,0.15221]
[1734980112653,0.39365127,92823.0,92803.0,0.3608]
[1734980112862,0.13674633,92813.0,92803.0,0.3608]
[1734980113250,0.2846888,92812.0,92803.0,0.3608]
[1734980113657,0.10773308,92811.0,92803.0,0.3608]
[1734980113958,0.27555756,92810.0,92803.0,0.3608]
[1734980114670,0.10774991,92809.0,92803.0,0.3608]
[1734980114975,0.12223097,92808.0,92803.0,0.3608]
[1734980115466,0.12223097,92808.0,92804.0,0.1997]
[1734980115661,0.10775107,92807.0,92804.0,0.1997]
[1734980116053,0.11390052,92806.0,92804.0,0.1997]
[1734980116459,0.11490052,92808.0,92804.0,0.1997]
[1734980116660,0.001,92808.0,92804.0,0.1997]
[1734980116962,0.10775165,92805.0,92804.0,0.1997]
[1734980117157,0.12120326,92807.0,92804.0,0.1997]
[1734980117358,0.10775165,92805.0,92804.0,0.1997]
[1734980117564,0.12020326,92806.0,92804.0,0.3608]
[1734980117758,0.22392706,92805.0,92801.0,0.1847]
[1734980118075,0.001,92805.0,92801.0,0.1847]
[1734980118271,0.2239288,92804.0,92801.0,0.1847]
[1734980118768,0.2239288,92804.0,92803.0,0.3608]
[1734980120257,0.10775339,92804.0,92803.0,0.3608]
[1734980120454,0.001,92804.0,92803.0,0.3608]
[1734980120655,0.01789376,92825.0,92803.0,0.3608]
[1734980120865,0.13674633,92820.0,92813.0,0.3608]
[1734980121064,0.39131561,92824.0,92813.0,0.3608]
[1734980121267,0.12129701,92819.0,92813.0,0.3608]
[1734980121568,0.39131561,92823.0,92803.0,0.3608]
[1734980121862,0.1608633,92818.0,92803.0,0.3608]
[1734980122069,0.13674633,92820.0,92803.0,0.3618]
[1734980122361,0.11954198,92817.0,92803.0,0.3618]
[1734980122660,0.45960528,92819.0,92803.0,0.3618]
[1734980122661,0.16234675,92816.0,92803.0,0.3618]
[1734980122863,0.28188873,92816.0,92803.0,0.3608]
[1734980123062,0.28786119,92818.0,92803.0,0.3618]
[1734980123268,0.3946082,92815.0,92811.0,0.3608]
[1734980123465,0.28686119,92817.0,92813.0,0.002]
[1734980123666,0.22618854,92814.0,92813.0,0.002]
[1734980123855,0.22618854,92814.0,92811.0,0.3608]
[1734980123856,0.11844153,92814.0,92811.0,0.3608]
[1734980124060,0.16452767,92816.0,92811.0,0.3608]
[1734980124260,0.22618273,92814.0,92811.0,0.3608]
[1734980124461,0.001,92816.0,92811.0,0.3608]
[1734980124663,0.001,92816.0,92813.0,0.003]
[1734980124957,0.23111174,92815.0,92813.0,0.003]
[1734980125162,0.23211174,92815.0,92811.0,0.3648]
[1734980125963,0.23111174,92815.0,92813.0,0.001]
[1734980126771,0.23211174,92815.0,92813.0,0.002]
[1734980127272,0.23311174,92815.0,92813.0,0.003]
[1734980128068,0.23211174,92815.0,92814.0,0.3608]
[1734980128275,0.23311174,92815.0,92814.0,0.3608]
[1734980128664,0.10974294,92815.0,92814.0,0.3608]
[1734980129178,0.10974294,92815.0,92814.0,0.3618]
[1734980130268,0.10974294,92815.0,92814.0,0.3638]
[1734980131267,0.01860585,92821.0,92814.0,0.3638]
[1734980131469,0.06,92850.0,92815.0,0.15221]
[1734980131669,0.06,92850.0,92849.0,0.3608]
[1734980132171,0.32988478,92850.0,92849.0,0.3608]
[1734980132375,0.44929362,92850.0,92849.0,0.3608]
[1734980134075,0.16772089,92850.0,92849.0,0.3628]
[1734980134268,0.09139554,92890.0,92849.0,0.3628]
[1734980134574,0.28029695,92879.0,92878.0,0.3608]
[1734980134770,0.28029695,92883.0,92878.0,0.3608]
[1734980134977,0.00056001,92889.0,92878.0,0.3608]
[1734980135175,0.2759425,92879.0,92878.0,0.3608]
[1734980135377,0.2759425,92888.0,92878.0,0.3608]
[1734980135577,0.2759425,92889.0,92887.0,0.3608]
[1734980135882,0.3608,92928.0,92887.0,0.3608]
[1734980136069,0.3608,92928.0,92909.0,0.3608]
[1734980136265,0.28635204,92910.0,92909.0,0.30010337]
[1734980136467,0.39457437,92927.0,92909.0,0.30010337]
[1734980136666,0.16312462,92927.0,92918.0,0.3608]
[1734980136867,0.37941528,92928.0,92918.0,0.3608]
[1734980136868,0.27366491,92922.0,92918.0,0.3608]
[1734980137071,0.38132723,92926.0,92918.0,0.3608]
[1734980137277,0.11277376,92921.0,92918.0,0.3608]
[1734980137670,0.11277376,92921.0,92888.0,0.20791502]
[1734980137671,0.3608,92919.0,92900.0,0.3608]
[1734980137874,0.3608,92902.0,92888.0,0.00161502]
[1734980138174,0.3608,92902.0,92886.0,0.3608]
[1734980138175,0.48895326,92901.0,92886.0,0.3608]
[1734980138378,0.28495326,92901.0,92886.0,0.3608]
[1734980138580,0.10762003,92900.0,92895.0,0.3608]
[1734980138775,0.23215506,92900.0,92895.0,0.3608]
[1734980138979,0.16196419,92899.0,92895.0,0.3608]
[1734980139179,0.16196419,92899.0,92888.0,0.003]
[1734980139477,0.22887562,92898.0,92888.0,0.003]
[1734980139873,0.3608,92892.0,92888.0,0.003]
[1734980140075,0.2109,92891.0,92888.0,0.002]
[1734980140277,0.48940842,92891.0,92888.0,0.002]
[1734980140468,0.10765073,92890.0,92888.0,0.002]
[1734980140978,0.27962593,92889.0,92888.0,0.002]
[1734980141179,0.27962593,92889.0,92864.0,0.3608]
[1734980141482,0.10765537,92888.0,92881.0,0.3608]
[1734980141678,0.10718704,92888.0,92881.0,0.3608]
[1734980142085,0.10718704,92888.0,92882.0,0.1935]
[1734980142586,0.10718704,92888.0,92885.0,0.3608]
[1734980142783,0.10818704,92888.0,92886.0,0.207]
[1734980143883,0.10918704,92888.0,92886.0,0.207]
[1734980144377,0.10818704,92888.0,92886.0,0.207]
[1734980144979,0.10718704,92888.0,92886.0,0.207]
[1734980145175,0.10918704,92888.0,92886.0,0.207]
[1734980146883,0.2088,92919.0,92886.0,0.260907]
[1734980147085,0.2088,92919.0,92902.0,0.3608]
[1734980147270,0.22271989,92904.0,92902.0,0.3608]
[1734980147475,0.27673546,92910.0,92902.0,0.3608]
[1734980147675,0.10765769,92903.0,92902.0,0.3608]
[1734980147874,0.22650963,92903.0,92902.0,0.3608]
[1734980148090,0.28000001,92918.0,92902.0,0.3608]
[1734980148283,0.10763567,92903.0,92902.0,0.3608]
[1734980148676,0.001,92904.0,92902.0,0.3608]
[1734980148872,0.10863567,92903.0,92902.0,0.3608]
[1734980149078,0.10963567,92903.0,92902.0,0.3608]
[1734980149383,0.002,92903.0,92902.0,0.3608]
[1734980149587,0.22650574,92903.0,92902.0,0.3608]
[1734980150375,0.22550574,92903.0,92902.0,0.3608]
[1734980150576,0.22650574,92903.0,92902.0,0.3608]
[1734980151486,0.22750574,92903.0,92902.0,0.3608]
[1734980152285,0.22650574,92903.0,92902.0,0.3608]
[1734980152473,0.11363972,92903.0,92902.0,0.3608]
[1734980152677,0.22805082,92903.0,92902.0,0.3608]
[1734980152879,0.22805082,92903.0,92887.0,0.2123]
[1734980153072,0.13682925,92900.0,92886.0,0.36144]
[1734980153276,0.3608,92894.0,92868.0,0.3608]
[1734980153481,0.13682925,92890.0,92876.0,0.3608]
[1734980153676,0.58885741,92893.0,92876.0,0.3608]
[1734980153877,0.28354812,92889.0,92868.0,0.3608]
[1734980154085,0.28354812,92889.0,92877.0,0.3608]
[1734980154283,0.10766232,92888.0,92877.0,0.3608]
[1734980154582,0.12212901,92887.0,92868.0,0.3608]
[1734980154786,0.12212901,92887.0,92877.0,0.3608]
[1734980154787,0.28354812,92887.0,92877.0,0.3608]
[1734980155191,0.1076687,92886.0,92877.0,0.3608]
[1734980155387,0.1076687,92886.0,92877.0,0.3628]
[1734980155688,0.27797255,92885.0,92877.0,0.3628]
[1734980156090,0.27797255,92885.0,92877.0,0.3608]
[1734980156283,0.10766406,92884.0,92877.0,0.3608]
[1734980156788,0.27744748,92883.0,92877.0,0.3608]
[1734980157382,0.10766522,92882.0,92877.0,0.3608]
[1734980157785,0.28203559,92881.0,92877.0,0.3608]
[1734980158381,0.10766638,92880.0,92877.0,0.3608]
[1734980158782,0.28292873,92879.0,92877.0,0.3608]
[1734980159386,0.10766754,92878.0,92877.0,0.3608]
[1734980159686,0.003,92880.0,92877.0,0.3608]
[1734980159878,0.2199,92907.0,92877.0,0.3608]
[1734980160083,0.2199,92907.0,92899.0,0.3608]
[1734980160277,0.39061251,92906.0,92899.0,0.3608]
[1734980161585,0.3608,92904.0,92892.0,0.00064]
[1734980161777,0.39221252,92906.0,92899.0,0.001]
[1734980161983,0.39221252,92906.0,92905.0,0.3608]
[1734980161984,0.001,92906.0,92905.0,0.3608]
[1734980162494,0.22940712,92906.0,92905.0,0.3608]
[1734980162685,0.23040712,92906.0,92905.0,0.3608]
[1734980162881,0.23040712,92906.0,92905.0,0.2858]
[1734980164076,0.22940712,92906.0,92892.0,0.00064]
[1734980164395,0.39107651,92906.0,92883.0,0.3608]
[1734980164690,0.39307651,92906.0,92883.0,0.3608]
[1734980164886,0.39107651,92906.0,92883.0,0.3608]
[1734980165089,0.39807651,92906.0,92905.0,0.001]
[1734980165486,0.40007651,92906.0,92905.0,0.001]
[1734980165690,0.39307651,92906.0,92883.0,0.3628]
[1734980165987,0.39307651,92906.0,92891.0,0.3608]
[1734980167187,0.39807651,92906.0,92905.0,0.001]
[1734980167491,0.58127651,92906.0,92905.0,0.001]
[1734980167687,0.58127651,92906.0,92891.0,0.3608]
[1734980167992,0.57027651,92906.0,92891.0,0.3608]
[1734980168193,0.57127651,92906.0,92891.0,0.3608]
[1734980168392,0.3608,92893.0,92881.0,0.3608]
[1734980168590,0.3608,92882.0,92865.0,0.3608]
[1734980168893,0.27713881,92881.0,92865.0,0.3608]
[1734980169095,0.38481215,92881.0,92865.0,0.3608]
[1734980169495,0.38481215,92881.0,92864.0,0.3608]
[1734980170911,0.38481215,92881.0,92865.0,0.006]
[1734980171206,0.38481215,92881.0,92864.0,0.3628]
[1734980171410,0.38481215,92881.0,92876.0,0.3608]
[1734980171803,0.27001373,92881.0,92876.0,0.3608]
[1734980172304,0.3608,92913.0,92880.0,0.053911]
[1734980172505,0.2085,92912.0,92894.0,0.3608]
[1734980172700,0.2862369,92900.0,92894.0,0.2858]
[1734980172907,0.16124551,92900.0,92887.0,0.3608]
[1734980173110,0.3608,92891.0,92866.0,0.3608]
[1734980173317,0.2085,92890.0,92870.0,0.13682925]
[1734980173613,0.002,92881.0,92866.0,0.3608]
[1734980174012,0.002,92881.0,92870.0,0.13682925]
[1734980174212,0.10763915,92889.0,92870.0,0.13682925]
[1734980174213,0.11206917,92880.0,92870.0,0.13682925]
[1734980174708,0.10767334,92879.0,92870.0,0.13682925]
[1734980174915,0.10767334,92879.0,92877.0,0.3608]
[1734980175218,0.16061622,92889.0,92877.0,0.3608]
[1734980175515,0.1076716,92878.0,92877.0,0.3608]
[1734980175707,0.11421545,92888.0,92877.0,0.3608]
[1734980175906,0.27468166,92890.0,92877.0,0.3608]
[1734980176107,0.1076716,92878.0,92877.0,0.3608]
[1734980176307,0.28542046,92899.0,92877.0,0.3608]
[1734980176510,0.16046621,92889.0,92885.0,0.3608]
[1734980177013,0.12495425,92888.0,92885.0,0.3608]
[1734980177419,0.10765769,92887.0,92885.0,0.3608]
[1734980178009,0.11308444,92886.0,92885.0,0.3608]
[1734980178213,0.22074329,92886.0,92885.0,0.3608]
[1734980178414,0.10765885,92886.0,92885.0,0.3608]
[1734980178614,0.11516786,92886.0,92885.0,0.3608]
[1734980178808,0.22282671,92886.0,92885.0,0.3608]
[1734980179012,0.10765885,92886.0,92885.0,0.3608]
[1734980179315,0.11571633,92886.0,92885.0,0.3608]
[1734980179519,0.22337576,92886.0,92885.0,0.3608]
[1734980179710,0.10765943,92886.0,92885.0,0.3608]
[1734980179912,0.002,92887.0,92885.0,0.6608]
[1734980180116,0.3608,92928.0,92885.0,0.6608]
[1734980180322,0.3608,92935.0,92917.0,0.3608]
[1734980180614,0.38123095,92919.0,92917.0,0.3608]
[1734980180818,0.63501152,92935.0,92917.0,0.3608]
[1734980181118,0.3608,92946.0,92917.0,0.3608]
[1734980181119,0.10765943,92918.0,92917.0,0.414689]
[1734980181413,0.42439282,92947.0,92932.0,0.05388]
[1734980181414,0.27408854,92934.0,92932.0,0.05388]
[1734980181622,0.00271175,92948.0,92935.0,0.053878]
[1734980181918,0.00215174,92948.0,92947.0,0.3608]
[1734980182223,0.11834054,92948.0,92947.0,0.3608]
[1734980182407,0.2259351,92948.0,92947.0,0.3608]
[1734980182610,0.3608,92998.0,92948.0,0.15221]
[1734980182808,0.3608,92998.0,92947.0,2.10014203]
[1734980182809,0.3608,92998.0,92989.0,0.3608]
[1734980183018,0.12114134,92990.0,92989.0,0.3608]
[1734980183210,0.48194134,92998.0,92965.0,0.00161375]
[1734980183211,0.26795094,92997.0,92970.0,0.13682925]
[1734980183411,0.77916343,92990.0,92966.0,0.3608]
[1734980183716,0.3608,92990.0,92966.0,0.36164]
[1734980184127,0.27596197,92989.0,92966.0,0.3608]
[1734980184322,0.38351429,92989.0,92966.0,0.3608]
[1734980184706,0.38351429,92989.0,92966.0,0.3618]
[1734980186516,0.38451429,92989.0,92970.0,0.13682925]